bitfinex/quotes_SOLUSD_20251006
["timestamp","ask_amount","ask_price","bid_price","bid_amount"]
[1759727598593,0.61,230.28,230.25,30.42]
[1759727598768,2.13742721,230.28,230.23,0.72]
[1759727598971,6.47977815,230.29,230.24,0.72]
[1759727599210,4.95235094,230.29,230.24,0.72]
[1759727599570,4.34235094,230.29,230.23,30.46]
[1759727599876,4.34235094,230.29,230.24,0.72]
[1759727600406,4.34216239,230.3,230.25,0.72]
[1759727600899,1.36898126,230.32,230.26,0.72]
[1759727601112,1.97898126,230.34,230.26,0.72]
[1759727601903,4.34159683,230.33,230.26,0.72]
[1759727602100,4.34148699,230.34,230.26,0.72]
[1759727602514,4.34148699,230.34,230.26,5.06286051]
[1759727602684,4.34148699,230.34,230.27,0.72]
[1759727603394,4.95148699,230.34,230.27,0.72]
[1759727603569,1.36898126,230.33,230.27,0.72]
[1759727604607,1.36898126,230.33,230.23,34.80342469]
[1759727604608,4.95178534,230.32,230.23,35.52342469]
[1759727604777,1.97898126,230.31,230.23,0.72]
[1759727604979,1.97898126,230.31,230.24,30.46]
[1759727605183,1.97898126,230.31,230.25,0.72]
[1759727606523,0.61,230.31,230.25,0.72]
[1759727606680,1.36898126,230.32,230.25,0.72]
[1759727606881,0.61,230.31,230.25,0.72]
[1759727607807,1.36898126,230.3,230.24,30.46]
[1759727608109,0.61,230.29,230.24,30.46]
[1759727608417,0.61,230.29,230.24,31.18]
[1759727608589,4.34253951,230.28,230.24,30.46]
[1759727608792,4.34253951,230.28,230.24,31.18]
[1759727611013,1.36898126,230.26,230.19,20.8]
[1759727611215,1.36898126,230.26,230.2,30.44]
[1759727611520,1.97898126,230.26,230.2,30.44]
[1759727612112,0.61,230.26,230.2,30.44]
[1759727612321,4.34310532,230.25,230.21,0.72]
[1759727613533,11.46524316,230.31,230.22,0.68]
[1759727613708,12.83422442,230.31,230.22,0.68]
[1759727614194,1.97898126,230.31,230.22,0.68]
[1759727614395,1.36898126,230.31,230.22,0.68]
[1759727614918,4.34216239,230.3,230.22,5.02365407]
[1759727615118,4.34216239,230.3,230.23,0.68]
[1759727617002,1.36898126,230.29,230.2,30.44]
[1759727617318,1.36898126,230.25,230.2,30.44]
[1759727617622,1.36898126,230.25,230.21,0.68]
[1759727617800,1.36898126,230.25,230.2,30.44]
[1759727617994,1.36898126,230.25,230.21,0.68]
[1759727618203,1.36898126,230.27,230.22,0.68]
[1759727620332,4.3429167,230.26,230.23,0.68]
[1759727621016,4.3429167,230.26,230.2,30.44]
[1759727621221,4.3429167,230.26,230.21,0.68]
[1759727621409,4.3429167,230.26,230.22,0.68]
[1759727621609,4.3429167,230.26,230.2,30.44]
[1759727621825,4.3429167,230.26,230.21,0.68]
[1759727622011,4.3429167,230.26,230.2,30.44]
[1759727622217,4.3429167,230.26,230.22,0.68]
[1759727623409,4.3429167,230.26,230.2,30.44]
[1759727623607,4.3429167,230.26,230.21,0.68]
[1759727623809,4.3429167,230.26,230.22,0.68]
[1759727624033,4.3429167,230.26,230.23,0.68]
[1759727625435,5.71173859,230.27,230.23,0.68]
[1759727626916,4.34253951,230.28,230.23,0.68]
[1759727627621,4.95253951,230.28,230.23,0.68]
[1759727629034,4.95253951,230.28,230.23,0.71]
[1759727629953,4.34253951,230.28,230.2,30.44]
[1759727630148,4.34253951,230.28,230.21,0.71]
[1759727630520,5.71152077,230.28,230.21,0.71]
[1759727630726,1.36898126,230.27,230.21,0.71]
[1759727631141,4.3423811,230.29,230.21,0.71]
[1759727632221,0.61,230.31,230.21,5.05381604]
[1759727632421,20.8,230.32,230.22,0.71]
[1759727632622,3.59253017,230.4,230.22,0.71]
[1759727632623,4.95065457,230.38,230.24,20.8]
[1759727632841,4.34065457,230.38,230.25,11.58647521]
[1759727633139,4.34065457,230.38,230.26,31.13]
[1759727633353,4.34065457,230.38,230.27,0.71]
[1759727634232,4.34065457,230.38,230.27,5.05257945]
[1759727634233,5.70963583,230.38,230.27,5.05257945]
[1759727634549,5.70963583,230.38,230.28,0.71]
[1759727634848,0.61,230.37,230.28,0.71]
[1759727635033,1.36898126,230.32,230.29,30.42]
[1759727636454,5.71079494,230.32,230.29,30.42]
[1759727636844,4.34181368,230.32,230.29,30.42]
[1759727637161,4.34181368,230.32,230.29,31.13]
[1759727637460,4.34181368,230.32,230.3,30.4]
[1759727637759,6.32052596,230.34,230.3,30.4]
[1759727638770,1.36898126,230.32,230.25,21.51]
[1759727638938,1.36898126,230.32,230.26,31.13]
[1759727639139,1.36898126,230.31,230.27,30.42]
[1759727639341,1.36898126,230.31,230.27,31.13]
[1759727640548,4.34216239,230.3,230.27,30.42]
[1759727640745,4.34216239,230.3,230.27,31.13]
[1759727641856,4.34216239,230.3,230.22,0.71]
[1759727641857,1.97898126,230.29,230.22,0.71]
[1759727642041,0.61,230.29,230.23,30.4]
[1759727642241,0.61,230.29,230.23,31.11]
[1759727642438,4.34216239,230.3,230.24,0.71]
[1759727642439,5.71114365,230.3,230.24,0.71]
[1759727645469,4.34196215,230.32,230.24,0.71]
[1759727646165,4.34196215,230.32,230.24,5.05328047]
[1759727646390,4.34196215,230.32,230.25,5.05309154]
[1759727646566,4.34196215,230.32,230.26,0.71]
[1759727647161,79.1,230.33,230.26,0.71]
[1759727647479,80.46898126,230.33,230.26,0.71]
[1759727648368,84.81064271,230.33,230.26,0.71]
[1759727649651,85.42064271,230.33,230.26,0.71]
[1759727650773,79.1,230.33,230.26,5.05289648]
[1759727650965,79.1,230.33,230.27,0.71]
[1759727651377,0.61,230.35,230.27,0.71]
[1759727651883,4.95124511,230.35,230.28,4.34253951]
[1759727652074,4.95124511,230.35,230.29,31.09]
[1759727652785,4.34114975,230.36,230.3,0.71]
[1759727654658,4.34084406,230.37,230.3,5.05212627]
[1759727654858,4.34084406,230.37,230.31,0.71]
[1759727655485,4.95084406,230.37,230.31,0.71]
[1759727656273,6.31982532,230.37,230.31,0.71]
[1759727656974,6.31982532,230.37,230.29,30.38]
[1759727657181,6.31982532,230.37,230.29,31.09]
[1759727657359,6.31982532,230.37,230.29,30.38]
[1759727657560,6.31982532,230.37,230.3,0.71]
[1759727660490,3.18851035,230.36,230.3,0.71]
[1759727661285,3.18851035,230.36,230.3,5.0521411]
[1759727661506,3.18851035,230.36,230.29,30.38]
[1759727661802,3.18851035,230.36,230.31,0.67]
[1759727661965,7.52954229,230.36,230.31,0.67]
[1759727662174,3.18851035,230.35,230.29,34.72234088]
[1759727662374,3.18851035,230.35,230.3,0.67]
[1759727662678,3.18851035,230.35,230.31,0.67]
[1759727663388,3.18851035,230.35,230.29,34.72234088]
[1759727663389,2.747612,230.34,230.29,30.38]
[1759727663585,3.79851035,230.33,230.29,30.38]
[1759727663773,0.61,230.33,230.29,30.38]
[1759727663976,4.95165392,230.33,230.29,30.38]
[1759727664205,3.18828294,230.32,230.29,30.38]
[1759727664793,3.18828294,230.32,230.23,10.85869797]
[1759727664794,2.137612,230.3,230.23,0.67]
[1759727664966,2.137612,230.28,230.23,0.67]
[1759727665181,3.18828294,230.27,230.24,29.3]
[1759727665786,3.79828294,230.27,230.24,29.3]
[1759727665989,0.61,230.27,230.24,29.3]
[1759727666186,0.61,230.27,230.21,0.67]
[1759727666386,0.61,230.27,230.22,30.38]
[1759727666602,0.61,230.27,230.22,31.05]
[1759727667406,3.18939673,230.26,230.22,31.05]
[1759727667798,7.53233105,230.26,230.22,30.38]
[1759727668109,3.18939673,230.25,230.22,30.38]
[1759727668693,3.79939673,230.25,230.22,30.38]
[1759727668993,0.61,230.25,230.22,30.38]
[1759727669200,4.34293432,230.26,230.22,30.38]
[1759727669519,3.18908153,230.25,230.22,30.38]
[1759727669688,7.53222617,230.25,230.22,30.38]
[1759727669888,4.34314464,230.25,230.22,30.38]
[1759727670312,3.18892229,230.24,230.22,30.38]
[1759727671814,0.61,230.23,230.18,20.8]
[1759727672118,0.61,230.23,230.19,30.36]
[1759727672491,6.48101929,230.24,230.19,31.03]
[1759727672691,3.1883674,230.23,230.19,31.03]
[1759727673713,8.14188108,230.23,230.19,30.36]
[1759727673894,4.95351368,230.23,230.19,30.36]
[1759727674392,4.34351368,230.23,230.19,31.04]
[1759727674607,0.61,230.25,230.2,0.68]
[1759727674799,3.18953357,230.24,230.2,0.68]
[1759727676432,7.53283689,230.24,230.2,0.68]
[1759727676614,3.18953357,230.23,230.2,0.68]
[1759727676818,3.18953357,230.23,230.19,30.36]
[1759727676819,7.53301803,230.23,230.19,30.36]
[1759727677113,3.79953357,230.22,230.19,30.36]
[1759727677291,2.747612,230.22,230.19,30.36]
[1759727677716,2.137612,230.22,230.19,30.36]
[1759727677917,6.48109646,230.23,230.19,30.36]
[1759727678116,3.18791289,230.22,230.19,31.04]
[1759727678313,3.18791289,230.22,230.19,30.36]
[1759727678525,7.53172757,230.22,230.19,30.36]
[1759727678704,4.34349559,230.23,230.2,0.68]
[1759727678902,3.18731879,230.22,230.2,0.68]
[1759727679504,3.18731879,230.22,230.19,30.36]
[1759727679713,3.18731879,230.22,230.19,31.04]
[1759727680813,4.34385995,230.21,230.17,0.68]
[1759727681119,4.34385995,230.21,230.2,30.34]
[1759727681299,31.99472286,230.21,230.12,0.68]
[1759727681500,2.137612,230.18,230.13,31.04]
[1759727681721,3.18475805,230.17,230.14,0.68]
[1759727682026,2.137612,230.19,230.14,0.68]
[1759727682212,3.18450164,230.18,230.14,0.68]
[1759727683914,7.52903452,230.18,230.14,0.68]
[1759727684120,2.137612,230.18,230.14,0.68]
[1759727684822,6.48206521,230.18,230.14,0.68]
[1759727685607,2.137612,230.18,230.14,0.68]
[1759727687616,6.48205084,230.18,230.14,0.68]
[1759727688733,2.137612,230.23,230.14,5.02516454]
[1759727689033,3.17717915,230.22,230.15,0.66]
[1759727689335,3.17668098,230.21,230.16,4.34480361]
[1759727689510,22.937612,230.23,230.17,0.66]
[1759727689709,3.17668901,230.22,230.18,30.36]
[1759727689908,3.17668901,230.22,230.19,0.66]
[1759727690633,3.17668901,230.22,230.18,30.36]
[1759727691041,3.17668901,230.22,230.19,0.66]
[1759727691211,4.3429167,230.26,230.19,0.66]
[1759727691415,2.137612,230.24,230.19,0.66]
[1759727691732,3.17607335,230.23,230.2,0.66]
[1759727691912,5.31368535,230.23,230.2,0.66]
[1759727692111,2.137612,230.23,230.2,0.66]
[1759727692526,2.137612,230.23,230.18,30.36]
[1759727692730,2.137612,230.23,230.19,0.66]
[1759727692915,2.137612,230.23,230.2,0.66]
[1759727693103,6.48112194,230.23,230.2,0.66]
[1759727693304,6.48112194,230.23,230.18,30.36]
[1759727693514,6.48112194,230.23,230.19,0.66]
[1759727693721,2.137612,230.23,230.2,0.66]
[1759727696335,6.48110376,230.23,230.2,0.66]
[1759727696631,2.137612,230.21,230.18,30.36]
[1759727697026,2.137612,230.21,230.18,31.02]
[1759727700214,6.4815005,230.21,230.18,31.02]
[1759727700415,4.3438885,230.21,230.18,30.36]
[1759727700616,2.137612,230.22,230.19,0.66]
[1759727700833,2.137612,230.2,230.18,30.36]
[1759727701718,2.137612,230.21,230.18,30.36]
[1759727702341,6.48148261,230.21,230.18,30.36]
[1759727702817,22.937612,230.19,230.18,30.36]
[1759727703643,8.61909461,230.2,230.18,30.36]
[1759727704536,12.96318316,230.2,230.18,30.36]
[1759727705043,2.137612,230.19,230.18,30.36]
[1759727705432,10.82557116,230.2,230.18,30.36]
[1759727705433,12.96318316,230.2,230.18,30.36]
[1759727706146,3.18176425,230.19,230.18,30.36]
[1759727707416,3.18176425,230.19,230.18,31.02]
[1759727708239,3.18176425,230.19,230.18,30.36]
[1759727708541,84.41937625,230.19,230.18,30.36]
[1759727709441,88.76361361,230.19,230.18,30.36]
[1759727710462,84.41937625,230.19,230.18,30.36]
[1759727710950,88.76361361,230.19,230.18,30.36]
[1759727711375,82.28176425,230.19,230.18,30.36]
[1759727711764,82.28176425,230.19,230.18,31.02]
[1759727712636,82.28176425,230.19,230.18,30.36]
[1759727712835,86.62600161,230.19,230.18,30.36]
[1759727714433,7.52600161,230.19,230.18,30.36]
[1759727714858,3.18176425,230.19,230.18,30.36]
[1759727715360,3.18176425,230.19,230.18,31.02]
[1759727716452,2.137612,230.22,230.18,31.02]
[1759727716453,3.18176425,230.21,230.18,31.02]
[1759727716761,13.34734276,230.27,230.19,5.00423736]
[1759727716762,3.18176425,230.2,230.19,5.00423736]
[1759727717263,3.18176425,230.26,230.19,5.00423736]
[1759727717451,3.18176425,230.25,230.19,4.34423736]
[1759727717755,3.18176425,230.24,230.2,0.66]
[1759727717957,3.18176425,230.23,230.2,0.66]
[1759727718146,3.18176425,230.22,230.2,0.66]
[1759727718460,3.18176425,230.21,230.2,0.66]
[1759727718656,3.18176425,230.25,230.2,0.66]
[1759727718958,3.18176425,230.24,230.2,0.66]
[1759727719257,3.18176425,230.23,230.2,0.66]
[1759727719467,3.18176425,230.22,230.2,0.66]
[1759727719640,3.18176425,230.21,230.2,0.66]
[1759727720158,3.18176425,230.24,230.2,0.66]
[1759727720456,3.18176425,230.23,230.2,5.00399081]
[1759727720662,3.18176425,230.22,230.21,0.72]
[1759727723158,3.18176425,230.22,230.21,5.06385995]
[1759727723553,3.18176425,230.26,230.21,5.06385995]
[1759727723752,3.18176425,230.25,230.22,31.08]
[1759727723954,3.18176425,230.24,230.22,31.08]
[1759727724156,3.18176425,230.23,230.22,31.08]
[1759727727368,3.18176425,230.25,230.22,35.42367127]
[1759727727671,3.18176425,230.24,230.23,0.72]
[1759727727874,3.18176425,230.29,230.23,0.72]
[1759727728074,3.18176425,230.28,230.23,0.72]
[1759727728255,3.18176425,230.27,230.23,0.72]
[1759727728577,3.18176425,230.26,230.23,0.72]
[1759727728750,3.18176425,230.25,230.23,0.72]
[1759727728947,3.18176425,230.24,230.23,0.72]
[1759727729361,7.52433757,230.28,230.23,0.72]
[1759727729543,3.18176425,230.27,230.23,0.72]
[1759727729743,3.18176425,230.26,230.23,0.72]
[1759727729963,3.18176425,230.25,230.23,0.72]
[1759727730169,3.18176425,230.24,230.23,0.72]
[1759727730366,3.18176425,230.24,230.23,5.0634826]
[1759727730549,7.52420037,230.29,230.23,5.0634826]
[1759727730755,3.18176425,230.28,230.24,0.72]
[1759727730964,3.18176425,230.27,230.24,0.72]
[1759727731160,3.18176425,230.26,230.24,0.72]
[1759727731371,3.18176425,230.25,230.22,34.7036671]
[1759727731667,10.05413409,230.3,230.22,30.36]
[1759727731867,3.19155099,230.29,230.23,0.72]
[1759727732066,3.19155099,230.28,230.23,0.72]
[1759727732375,3.19155099,230.27,230.23,0.72]
[1759727732552,3.19155099,230.26,230.23,0.72]
[1759727732757,3.19155099,230.25,230.23,0.72]
[1759727732961,84.81181184,230.29,230.23,0.72]
[1759727733162,3.19100661,230.28,230.23,5.06340646]
[1759727733458,3.19100661,230.28,230.24,0.72]
[1759727733855,3.19100661,230.28,230.25,0.7]
[1759727734074,3.19100661,230.28,230.26,30.34]
[1759727734468,16.22456803,230.28,230.26,30.34]
[1759727734660,3.19100661,230.27,230.26,30.34]
[1759727735561,3.80100661,230.27,230.26,30.34]
[1759727735875,3.19100661,230.27,230.26,30.34]
[1759727737671,3.19100661,230.27,230.26,35.3829167]
[1759727737971,17.37275083,230.34,230.26,35.3829167]
[1759727738185,3.1900183,230.33,230.27,0.7]
[1759727738478,3.1900183,230.32,230.27,0.7]
[1759727738678,3.1900183,230.31,230.27,0.7]
[1759727738881,3.1900183,230.3,230.27,0.7]
[1759727739056,17.37197977,230.35,230.28,4.34253951]
[1759727739254,3.1891659,230.34,230.29,0.7]
[1759727739471,3.1891659,230.34,230.3,31.04]
[1759727739887,3.1891659,230.34,230.3,29.7049642]
[1759727740084,3.1891659,230.34,230.3,29.0049642]
[1759727740981,3.1891659,230.34,230.3,29.7049642]
[1759727741292,7.53058623,230.34,230.3,29.7049642]
[1759727741473,3.1891659,230.33,230.3,29.7049642]
[1759727741964,3.1891659,230.33,230.3,29.0049642]
[1759727742166,3.1891659,230.33,230.31,0.7]
[1759727744176,3.1891659,230.33,230.3,29.0049642]
[1759727744377,3.1891659,230.33,230.31,0.7]
[1759727745066,3.1891659,230.33,230.32,0.7]
[1759727745288,21.7274723,230.4,230.32,0.7]
[1759727745289,79.1,230.37,230.32,0.7]
[1759727745489,3.18361391,230.36,230.33,30.34]
[1759727745686,3.18361391,230.36,230.34,0.7]
[1759727748398,3.18361391,230.36,230.35,0.71]
[1759727748695,3.18361391,230.36,230.33,31.05]
[1759727748864,3.18361391,230.36,230.34,0.71]
[1759727749069,3.18361391,230.36,230.35,0.71]
[1759727749486,5.70994044,230.39,230.35,0.71]
[1759727749805,4.55072089,230.38,230.34,0.71]
[1759727750094,1.36941265,230.38,230.33,30.34]
[1759727750298,1.36941265,230.37,230.33,31.05]
[1759727750783,15.1916932,230.39,230.28,0.71]
[1759727750784,1.36941265,230.34,230.28,0.71]
[1759727750984,1.36941265,230.34,230.29,30.34]
[1759727750985,1.36941265,230.31,230.29,30.34]
[1759727751300,5.71157504,230.3,230.29,30.34]
[1759727752179,1.36941265,230.3,230.29,30.34]
[1759727752378,1.36941265,230.32,230.29,31.05]
[1759727752577,1.36941265,230.32,230.3,0.71]
[1759727752998,4.34161384,230.33,230.3,0.71]
[1759727755309,1.36941265,230.35,230.31,0.71]
[1759727755509,3.17902776,230.34,230.31,0.71]
[1759727756591,7.52045308,230.34,230.31,0.71]
[1759727756897,4.54871778,230.33,230.31,0.71]
[1759727757094,5.71083797,230.34,230.31,0.71]
[1759727757407,3.17930621,230.33,230.31,0.71]
[1759727757614,3.17930621,230.33,230.29,31.05]
[1759727757908,3.17930621,230.33,230.3,0.71]
[1759727758985,3.17930621,230.33,230.21,31.67647521]
[1759727758986,1.36941265,230.31,230.25,30.32]
[1759727759187,1.36941265,230.29,230.25,30.32]
[1759727759386,3.17930621,230.28,230.25,31.03]
[1759727760508,8.89140983,230.28,230.25,31.03]
[1759727760718,5.71210362,230.28,230.25,31.03]
[1759727761221,3.18228897,230.27,230.25,31.03]
[1759727761716,7.52507735,230.27,230.25,31.03]
[1759727761917,4.34278838,230.27,230.25,31.03]
[1759727764414,4.34278838,230.27,230.26,0.71]
[1759727764605,7.52574466,230.27,230.26,0.71]
[1759727765913,7.52574466,230.27,230.25,31.03]
[1759727766117,3.18295628,230.26,230.25,31.03]
[1759727768900,7.52587298,230.26,230.25,31.03]
[1759727769207,7.52587298,230.26,230.25,30.32]
[1759727769410,7.52587298,230.26,230.22,0.71]
[1759727769612,4.55236893,230.25,230.22,30.32]
[1759727769815,3.18295628,230.24,230.23,0.71]
[1759727770510,79.1,230.26,230.23,0.71]
[1759727771109,79.1,230.26,230.23,5.05341638]
[1759727771506,79.1,230.26,230.24,0.71]
[1759727772315,79.1,230.26,230.25,0.71]
[1759727772631,82.28720487,230.26,230.25,0.71]
[1759727773709,3.18720487,230.26,230.25,0.71]
[1759727774023,33.83129683,230.33,230.25,0.71]
[1759727774228,3.18712402,230.32,230.26,30.32]
[1759727774533,3.18712402,230.31,230.26,30.32]
[1759727774830,3.18712402,230.3,230.26,31.03]
[1759727775038,3.18712402,230.29,230.26,31.03]
[1759727775332,3.18712402,230.28,230.27,0.71]
[1759727777715,3.18712402,230.28,230.26,30.32]
[1759727777910,3.18712402,230.27,230.26,31.0]
[1759727778445,3.18712402,230.27,230.26,35.34287628]
[1759727778605,4.34143203,230.34,230.26,35.34287628]
[1759727778807,3.18981404,230.33,230.27,0.68]
[1759727779040,3.18981404,230.32,230.27,0.68]
[1759727779213,3.18981404,230.31,230.27,0.68]
[1759727779528,3.18981404,230.3,230.26,30.32]
[1759727779717,1.36941265,230.32,230.28,0.68]
[1759727779718,3.18981404,230.29,230.28,0.68]
[1759727779918,3.18981404,230.31,230.28,0.68]
[1759727780120,3.18981404,230.3,230.28,0.68]
[1759727780313,3.18981404,230.29,230.28,0.68]
[1759727780514,4.34197386,230.31,230.28,0.68]
[1759727780733,3.18981404,230.3,230.28,0.68]
[1759727782335,7.53198759,230.3,230.28,0.68]
[1759727782515,3.18981404,230.29,230.28,0.68]
[1759727783227,3.18981404,230.3,230.28,0.68]
[1759727783407,3.18981404,230.29,230.28,0.68]
[1759727783612,3.18981404,230.29,230.26,34.66286035]
[1759727783922,4.3418113,230.32,230.26,34.66286035]
[1759727784229,3.19178929,230.31,230.27,0.68]
[1759727784423,3.19178929,230.3,230.28,0.68]
[1759727784745,3.19178929,230.3,230.26,34.66286035]
[1759727784746,3.19178929,230.29,230.27,4.3427281]
[1759727784932,0.43534299,230.38,230.29,20.8]
[1759727784933,4.34084074,230.38,230.29,20.8]
[1759727785110,9.67257691,230.37,230.3,31.0]
[1759727785319,3.19211683,230.36,230.31,0.68]
[1759727785525,3.19211683,230.35,230.31,0.68]
[1759727785837,3.19211683,230.34,230.31,0.68]
[1759727786037,6.47930175,230.38,230.32,4.34178534]
[1759727786222,3.19118099,230.37,230.33,0.68]
[1759727786426,6.47930175,230.38,230.34,31.0]
[1759727786427,3.19118099,230.36,230.34,31.0]
[1759727786744,3.19118099,230.35,230.34,31.0]
[1759727786943,3.19118099,230.37,230.34,31.0]
[1759727787125,3.19118099,230.36,230.34,31.0]
[1759727787451,3.19118099,230.35,230.34,31.0]
[1759727787762,3.19118099,230.39,230.34,31.0]
[1759727787949,3.19118099,230.38,230.34,30.32]
[1759727788253,3.19118099,230.37,230.34,34.66122419]
[1759727788461,4.33991418,230.42,230.35,0.68]
[1759727788639,3.19044453,230.41,230.35,0.68]
[1759727788836,3.19044453,230.4,230.35,0.68]
[1759727789151,4.33991418,230.42,230.35,0.68]
[1759727789152,3.19044453,230.39,230.35,0.68]
[1759727789338,7.08837519,230.42,230.35,0.68]
[1759727789647,7.53087693,230.41,230.35,5.02109623]
[1759727789850,3.19072344,230.4,230.36,0.68]
[1759727790156,3.19072344,230.4,230.37,0.68]
[1759727790446,3.19072344,230.4,230.35,4.34109623]
[1759727790447,3.19072344,230.4,230.38,31.0]
[1759727790639,3.19072344,230.39,230.38,31.0]
[1759727791042,3.19072344,230.42,230.38,31.0]
[1759727791242,3.19072344,230.41,230.38,31.0]
[1759727791442,3.19072344,230.4,230.38,30.32]
[1759727791644,6.47930175,230.43,230.38,30.32]
[1759727791854,3.18912394,230.42,230.38,30.32]
[1759727792052,3.18912394,230.41,230.38,30.32]
[1759727792225,15.77296879,230.46,230.39,0.68]
[1759727792428,3.18773918,230.45,230.39,0.68]
[1759727792834,7.52723526,230.45,230.39,0.68]
[1759727793152,3.18773918,230.44,230.39,15.87159118]
[1759727793359,7.28730668,230.48,230.4,0.68]
[1759727793539,3.18682879,230.47,230.4,0.68]
[1759727794244,3.18682879,230.47,230.41,4.3400894]
[1759727794450,3.18682879,230.47,230.42,31.03]
[1759727794654,3.18682879,230.47,230.43,0.71]
[1759727794847,7.52578913,230.47,230.43,0.71]
[1759727795037,3.18682879,230.46,230.42,30.32]
[1759727795231,4.94896034,230.47,230.42,31.03]
[1759727796632,4.94896034,230.47,230.42,30.32]
[1759727796865,4.94896034,230.47,230.27,24.83220285]
[1759727796866,2.13846101,230.43,230.36,0.71]
[1759727797033,2.13846101,230.4,230.37,30.32]
[1759727797233,2.13846101,230.41,230.37,30.32]
[1759727797433,2.13846101,230.4,230.37,30.32]
[1759727797651,2.13846101,230.38,230.37,30.32]
[1759727798061,2.13846101,230.4,230.37,30.32]
[1759727798365,6.47874575,230.4,230.37,30.32]
[1759727799653,4.34028474,230.4,230.37,30.32]
[1759727799954,6.47874575,230.4,230.37,30.32]
[1759727800156,2.13846101,230.38,230.37,30.32]
[1759727800547,0.61,230.43,230.37,31.03]
[1759727800739,2.13846101,230.41,230.37,31.03]
[1759727800942,20.8,230.44,230.37,31.03]
[1759727800943,13.02620438,230.43,230.38,0.71]
[1759727801140,5.31960123,230.42,230.38,0.71]
[1759727801356,3.18114022,230.41,230.38,0.71]
[1759727801752,13.02620438,230.43,230.39,0.71]
[1759727801954,4.53879825,230.48,230.4,20.8]
[1759727802155,4.53879825,230.48,230.41,35.3700894]
[1759727802360,4.53879825,230.48,230.42,0.71]
[1759727803244,0.2,230.48,230.42,0.71]
[1759727803462,3.37966967,230.48,230.42,0.71]
[1759727804138,0.2,230.48,230.43,4.33971271]
[1759727804335,0.2,230.48,230.44,0.71]
[1759727804538,0.2,230.48,230.45,31.01]
[1759727807375,0.2,230.48,230.45,30.3]
[1759727807545,0.2,230.48,230.46,0.71]
[1759727807978,0.2,230.48,230.47,0.72]
[1759727810664,0.2,230.48,230.47,5.05895951]
[1759727811082,0.2,230.48,230.47,0.72]
[1759727812266,0.2,230.48,230.47,5.05895951]
[1759727814659,0.2,230.48,230.47,0.72]
[1759727817060,0.2,230.48,230.47,5.05895951]
[1759727818300,0.2,230.48,230.47,15.93543472]
[1759727818790,0.2,230.48,230.47,5.05895951]
[1759727823189,0.2,230.48,230.47,51.1]
[1759727823489,0.2,230.48,230.47,51.82]
[1759727824684,0.2,230.48,230.47,30.3]
[1759727829167,5.14877125,230.48,230.47,30.3]
[1759727829370,8.33308294,230.48,230.47,30.3]
[1759727829784,10.47154395,230.48,230.47,30.3]
[1759727832610,5.5227727,230.48,230.47,30.3]
[1759727832815,5.5227727,230.48,230.47,31.02]
[1759727832816,3.38431169,230.48,230.47,31.02]
[1759727833103,3.38431169,230.48,230.47,30.3]
[1759727833484,7.72308294,230.48,230.47,30.3]
[1759727833873,10.47154395,230.48,230.47,30.3]
[1759727835894,9.86154395,230.48,230.47,30.3]
[1759727837986,10.47154395,230.48,230.47,30.3]
[1759727838478,9.86154395,230.48,230.47,30.3]
[1759727840279,10.47154395,230.48,230.47,30.3]
[1759727840693,20.3330879,230.48,230.47,30.3]
[1759727841205,31.18001604,230.48,230.45,30.3]
[1759727841407,2.13846101,230.46,230.45,30.3]
[1759727841707,5.3227727,230.46,230.45,30.3]
[1759727842101,3.18431169,230.46,230.45,30.3]